[Event "European Rapid Championship 2021"]
[Site "Katowice"]
[Date "2021.12.19"]
[Round "10.13"]
[White "Przybylski, Wojciech"]
[Black "Musial, Tomasz"]
[Result "1-0"]
[ECO "C11"]
[WhiteElo "2321"]
[BlackElo "1916"]
[Annotator "NA"]
[PlyCount "113"]
[EventDate "2021.12.18"]
[EventType "swiss"]
[EventCountry "POL"]
[SourceTitle "playchess.com"]
[Source "ChessBase"]
[SourceQuality "1"]
[TimeControl "900+10"]

1. e4 {[%emt 0:00:03]} e6 {[%emt 0:00:01]} 2. d4 {[%emt 0:00:06]} d5 {[%emt 0:
00:02]} 3. Nc3 {[%emt 0:00:03]} Nf6 {[%emt 0:00:04]} 4. Bg5 {[%emt 0:00:08]}
dxe4 {[%emt 0:00:02]} 5. Nxe4 {[%emt 0:00:09]} Be7 {[%emt 0:00:02]} 6. Bxf6 {
[%emt 0:00:11]} gxf6 {[%emt 0:00:02]} 7. Nc3 {[%emt 0:00:07]} f5 {[%emt 0:00:
35]} 8. g3 {[%emt 0:00:12]} Bf6 {[%emt 0:00:23]} 9. Nf3 {[%emt 0:00:11]} c5 {
[%emt 0:00:39]} 10. dxc5 {[%emt 0:03:02]} Bxc3+ {[%emt 0:01:33]} 11. bxc3 {
[%emt 0:00:03]} Qxd1+ {[%emt 0:00:03]} 12. Rxd1 {[%emt 0:00:06]} Nd7 {[%emt 0:
00:09]} 13. Bb5 {[%emt 0:01:21]} a6 {[%emt 0:01:14]} 14. Bxd7+ {[%emt 0:04:43]}
Bxd7 {[%emt 0:00:02]} 15. Ne5 {[%emt 0:00:01]} Bb5 {[%emt 0:02:55]} 16. c4 {
[%emt 0:01:38]} Ba4 {[%emt 0:00:16]} 17. Kd2 {[%emt 0:00:31]} Rc8 {[%emt 0:01:
35]} 18. Nd3 {[%emt 0:00:27]} O-O {[%emt 0:02:20]} 19. f3 {[%emt 0:01:51]} b6 {
[%emt 0:02:21]} 20. Rb1 {[%emt 0:00:05]} bxc5 {[%emt 0:00:21]} 21. Rb6 {
[%emt 0:00:02]} Rc6 {[%emt 0:01:28]} 22. Rhb1 {[%emt 0:00:15]} Rfc8 {[%emt 0:
01:03]} 23. f4 {[%emt 0:00:13]} a5 {[%emt 0:00:38]} 24. Kc3 {[%emt 0:00:30]}
Kf8 {[%emt 0:00:37]} 25. Rxc6 Bxc6 {[%emt 0:00:10]} 26. Nxc5 {[%emt 0:00:35]}
Bd5 {[%emt 0:00:29]} 27. Rb5 {[%emt 0:00:08]} Bc6 {[%emt 0:00:21]} 28. Rxa5 {
[%emt 0:00:01]} Be8 {[%emt 0:00:01]} 29. Nd3 {[%emt 0:00:16]} Rc7 {[%emt 0:00:
01]} 30. Ra8 {[%emt 0:00:16]} Ke7 {[%emt 0:00:03]} 31. a4 {[%emt 0:01:00]} f6 {
[%emt 0:00:15]} 32. a5 {[%emt 0:00:29]} Bb5 {[%emt 0:00:07]} 33. Nb2 {[%emt 0:
00:12]} Bc6 {[%emt 0:00:13]} 34. Rh8 {[%emt 0:00:10]} Kd6 {[%emt 0:00:01]} 35.
Rf8 {[%emt 0:01:01]} Ke7 {[%emt 0:00:13]} 36. Rb8 {[%emt 0:00:19]} Ra7 {
[%emt 0:00:08]} 37. Kb4 {[%emt 0:00:30]} Kd6 {[%emt 0:00:18]} 38. Nd3 {[%emt 0:
00:21]} e5 {[%emt 0:00:15]} 39. Rb6 {[%emt 0:00:10]} e4 {[%emt 0:00:08]} 40.
Nc1 {[%emt 0:00:03]} Ra8 {[%emt 0:00:17]} 41. Ne2 {[%emt 0:00:06]} Kc7 {
[%emt 0:00:07]} 42. Nd4 {[%emt 0:00:06]} Bd7 {[%emt 0:00:01]} 43. Rxf6 {
[%emt 0:00:20]} e3 {[%emt 0:00:12]} 44. a6 {[%emt 0:00:16]} Re8 {[%emt 0:00:13]
} 45. Ne2 {[%emt 0:00:07]} Bc6 {[%emt 0:00:01]} 46. Kc3 {[%emt 0:00:08]} Bf3 {
[%emt 0:00:13]} 47. Kd3 {[%emt 0:00:01]} Bg4 {[%emt 0:00:10]} 48. c5 {[%emt 0:
00:15]} Rd8+ {[%emt 0:00:01]} 49. Rd6 {[%emt 0:00:01]} Re8 {[%emt 0:00:13]} 50.
c3 {[%emt 0:00:14]} h5 {[%emt 0:00:14]} 51. Rd5 {[%emt 0:00:06]} Bf3 {[%emt 0:
00:07]} 52. Re5 {[%emt 0:00:02]} Be4+ {[%emt 0:00:30]} 53. Kxe3 {[%emt 0:00:01]
} Rd8 {[%emt 0:00:01]} 54. Nd4 {[%emt 0:00:03]} Ra8 {[%emt 0:00:01]} 55. Re6 {
[%emt 0:00:02]} Rb8 {[%emt 0:00:05]} 56. Re7+ {[%emt 0:00:16]} Kd8 {[%emt 0:00:
04]} 57. Rxe4 {[%emt 0:00:10]} 1-0

[Event "European Rapid Championship 2021"]
[Site "Katowice"]
[Date "2021.12.19"]
[Round "10.13"]
[White "Szpar, Milosz"]
[Black "Gumularz, Szymon"]
[Result "0-1"]
[ECO "B12"]
[WhiteElo "2315"]
[BlackElo "2452"]
[Annotator "ChessBase"]
[PlyCount "56"]
[EventDate "2021.12.18"]
[EventType "swiss"]
[EventCountry "POL"]
[SourceTitle "playchess.com"]
[Source "ChessBase"]
[SourceQuality "1"]
[TimeControl "900+10"]

1. e4 {[%emt 0:00:02]} c6 {[%emt 0:00:01]} 2. d4 {[%emt 0:00:03]} d5 {[%emt 0:
00:01]} 3. e5 {[%emt 0:00:03]} Bf5 {[%emt 0:00:04]} 4. h4 {[%emt 0:00:05]} h5 {
[%emt 0:00:04]} 5. Bd3 {[%emt 0:00:05]} Bxd3 {[%emt 0:00:06]} 6. Qxd3 {[%emt 0:
00:02]} Qa5+ {[%emt 0:00:04]} 7. Nd2 {[%emt 0:00:05]} e6 {[%emt 0:00:06]} 8.
Ngf3 {[%emt 0:00:09]} Nh6 {[%emt 0:00:06]} 9. O-O {[%emt 0:00:08]} Nf5 {
[%emt 0:00:04]} 10. Nb3 {[%emt 0:00:17]} Qb5 {[%emt 0:00:03]} 11. Qd1 {[%emt 0:
00:06]} c5 {[%emt 0:00:03]} 12. dxc5 {[%emt 0:02:13]} Bxc5 {[%emt 0:00:03]} 13.
a4 {[%emt 0:00:49]} Qb6 {[%emt 0:00:03]} 14. Nxc5 {[%emt 0:00:45]} Qxc5 {
[%emt 0:00:02]} 15. b3 {[%emt 0:00:04]} Nc6 {[%emt 0:00:59]} 16. Bb2 {[%emt 0:
02:13]} Rd8 {[%emt 0:00:52]} 17. Qd2 {[%emt 0:00:19]} Rh6 {[%emt 0:00:16]} 18.
Ba3 {[%emt 0:01:48]} Qb6 {[%emt 0:00:03]} 19. Rfe1 {[%emt 0:02:08]} Rg6 {
[%emt 0:00:05]} 20. Kh2 {[%emt 0:00:11]} d4 {[%emt 0:03:02]} 21. Qd3 {[%emt 0:
00:42]} Rd5 {[%emt 0:00:07]} 22. Re4 {[%emt 0:00:30]} Qc7 {[%emt 0:00:11]} 23.
Rae1 {[%emt 0:00:11]} Rg4 {[%emt 0:00:29]} 24. Kh3 {[%emt 0:00:26]} Rxe4 {
[%emt 0:00:07]} 25. Qxe4 {[%emt 0:00:05]} Kd7 {[%emt 0:00:17]} 26. Re2 {
[%emt 0:00:39]} Kc8 {[%emt 0:00:06]} 27. Bb2 {[%emt 0:00:38]} Qd8 {[%emt 0:00:
33]} 28. Ne1 {[%emt 0:00:32]} Rxe5 {[%emt 0:00:06]} 0-1

[Event "European Rapid Championship 2021"]
[Site "Katowice"]
[Date "2021.12.19"]
[Round "10.14"]
[White "Kosakowski, Jakub"]
[Black "Mirzoev, Emil"]
[Result "1-0"]
[ECO "C03"]
[WhiteElo "2438"]
[BlackElo "2418"]
[Annotator "NA"]
[PlyCount "57"]
[EventDate "2021.12.18"]
[EventType "swiss"]
[EventCountry "POL"]
[SourceTitle "playchess.com"]
[Source "ChessBase"]
[SourceQuality "1"]
[TimeControl "900+10"]

1. e4 {[%emt 0:00:03]} e6 {[%emt 0:00:20]} 2. d4 {[%emt 0:00:21]} d5 {[%emt 0:
00:01]} 3. Nd2 {[%emt 0:00:04]} h6 {[%emt 0:00:49]} 4. Ngf3 {[%emt 0:00:26]}
Nf6 {[%emt 0:00:01]} 5. e5 {[%emt 0:00:54]} Nfd7 {[%emt 0:00:03]} 6. Bd3 {
[%emt 0:00:23]} c5 {[%emt 0:00:10]} 7. c3 {[%emt 0:00:03]} Nc6 {[%emt 0:00:02]}
8. O-O {[%emt 0:00:20]} g5 {[%emt 0:00:12]} 9. dxc5 {[%emt 0:02:18]} Nxc5 {
[%emt 0:02:09]} 10. Bb5 {[%emt 0:03:51]} Bg7 {[%emt 0:00:29]} 11. Nb3 {[%emt 0:
00:17]} Nd7 {[%emt 0:02:12]} 12. Re1 {[%emt 0:00:09]} O-O {[%emt 0:00:34]} 13.
Bxc6 {[%emt 0:02:03]} bxc6 {[%emt 0:00:01]} 14. Qd4 {[%emt 0:00:30]} Qe7 {
[%emt 0:03:02]} 15. Na5 {[%emt 0:00:19]} c5 {[%emt 0:00:49]} 16. Qd3 {[%emt 0:
00:22]} Re8 {[%emt 0:03:19]} 17. h3 {[%emt 0:01:15]} Nf8 {[%emt 0:00:26]} 18.
b4 {[%emt 0:00:45]} c4 {[%emt 0:01:14]} 19. Qe2 {[%emt 0:00:19]} Qc7 {[%emt 0:
00:04]} 20. h4 {[%emt 0:00:17]} gxh4 {[%emt 0:02:16]} 21. Nxh4 {[%emt 0:00:03]}
Ng6 {[%emt 0:00:12]} 22. Qh5 {[%emt 0:00:29]} Nxh4 {[%emt 0:00:10]} 23. Qxh4 {
[%emt 0:00:02]} Bxe5 {[%emt 0:00:07]} 24. Bxh6 {[%emt 0:00:17]} f5 {[%emt 0:00:
14]} 25. Qg5+ {[%emt 0:00:56]} Bg7 {[%emt 0:00:01]} 26. Nc6 {[%emt 0:01:20]} a5
{[%emt 0:00:22]} 27. Re3 {[%emt 0:00:20]} f4 {[%emt 0:00:05]} 28. Bxg7 {
[%emt 0:00:12]} fxe3 {[%emt 0:00:15]} 29. Be5+ {[%emt 0:00:02]} 1-0

[Event "European Rapid Championship 2021"]
[Site "Katowice"]
[Date "2021.12.19"]
[Round "10.14"]
[White "Sliwicka, Alicja"]
[Black "Czarnecka, Lidia"]
[Result "1-0"]
[ECO "B42"]
[WhiteElo "2303"]
[BlackElo "1900"]
[Annotator "NA"]
[PlyCount "95"]
[EventDate "2021.12.18"]
[EventType "swiss"]
[EventCountry "POL"]
[SourceTitle "playchess.com"]
[Source "ChessBase"]
[SourceQuality "1"]
[TimeControl "900+10"]

1. e4 {[%emt 0:00:10]} c5 {[%emt 0:00:10]} 2. Nf3 {[%emt 0:00:03]} e6 {[%emt 0:
00:04]} 3. d4 {[%emt 0:00:01]} cxd4 {[%emt 0:00:02]} 4. Nxd4 {[%emt 0:00:03]}
a6 {[%emt 0:00:02]} 5. Bd3 {[%emt 0:00:02]} Bc5 {[%emt 0:00:18]} 6. Nb3 {
[%emt 0:00:04]} Ba7 {[%emt 0:00:01]} 7. O-O {[%emt 0:00:14]} Ne7 {[%emt 0:00:
07]} 8. Nc3 {[%emt 0:00:04]} O-O {[%emt 0:00:11]} 9. Qe2 {[%emt 0:00:16]} Nbc6
{[%emt 0:00:26]} 10. Bf4 {[%emt 0:00:29]} e5 {[%emt 0:01:56]} 11. Bg5 {[%emt 0:
00:48]} d6 {[%emt 0:00:45]} 12. Kh1 {[%emt 0:00:58]} Be6 {[%emt 0:00:23]} 13.
Rad1 {[%emt 0:00:21]} f6 {[%emt 0:00:48]} 14. Bc4 {[%emt 0:01:17]} Qd7 {
[%emt 0:01:46]} 15. Be3 {[%emt 0:00:52]} b5 {[%emt 0:00:20]} 16. Bxe6+ {
[%emt 0:00:32]} Qxe6 {[%emt 0:00:03]} 17. Nd5 {[%emt 0:00:24]} Rfc8 {[%emt 0:
03:28]} 18. Qd2 {[%emt 0:02:22]} Kf8 {[%emt 0:02:52]} 19. Rfe1 {[%emt 0:00:31]}
Nd8 {[%emt 0:01:23]} 20. Bxa7 {[%emt 0:03:25]} Rxa7 {[%emt 0:00:00]} 21. Qe3 {
[%emt 0:00:49]} Nec6 {[%emt 0:00:53]} 22. Rd2 {[%emt 0:00:59]} Nf7 {[%emt 0:00:
20]} 23. Red1 {[%emt 0:00:33]} Rb7 {[%emt 0:00:13]} 24. c3 {[%emt 0:00:46]} a5
{[%emt 0:00:07]} 25. Nc1 {[%emt 0:00:12]} b4 {[%emt 0:00:17]} 26. c4 {[%emt 0:
00:39]} Nd4 {[%emt 0:00:36]} 27. Nb3 {[%emt 0:00:39]} Nxb3 {[%emt 0:00:05]} 28.
Qxb3 {[%emt 0:00:40]} Rc5 {[%emt 0:00:01]} 29. Ne3 {[%emt 0:00:10]} Rbc7 {
[%emt 0:00:09]} 30. Qd3 {[%emt 0:00:18]} g6 {[%emt 0:00:22]} 31. b3 {[%emt 0:
00:02]} Kg7 {[%emt 0:00:01]} 32. Qe2 {[%emt 0:00:18]} Ra7 {[%emt 0:00:06]} 33.
Nd5 {[%emt 0:00:28]} Ra6 {[%emt 0:00:41]} 34. Rd3 {[%emt 0:00:07]} Nh6 {
[%emt 0:00:35]} 35. Rh3 {[%emt 0:00:27]} f5 {[%emt 0:00:08]} 36. exf5 {[%emt 0:
00:21]} Nxf5 {[%emt 0:00:19]} 37. Qg4 {[%emt 0:00:16]} Ra7 {[%emt 0:00:39]} 38.
Rhd3 {[%emt 0:00:27]} Rc6 {[%emt 0:00:27]} 39. Qe4 {[%emt 0:00:09]} Rc5 {
[%emt 0:00:05]} 40. Ne3 {[%emt 0:00:13]} Nxe3 {[%emt 0:00:10]} 41. Qxe3 {
[%emt 0:00:11]} Ra6 {[%emt 0:00:11]} 42. Qe4 {[%emt 0:00:07]} Rcc6 {[%emt 0:00:
05]} 43. c5 {[%emt 0:00:19]} Kg8 {[%emt 0:00:29]} 44. Rd5 {[%emt 0:00:11]} Rxc5
{[%emt 0:00:04]} 45. Rxc5 {[%emt 0:00:02]} dxc5 {[%emt 0:00:00]} 46. Rd8+ {
[%emt 0:00:02]} Kf7 {[%emt 0:00:03]} 47. Qb7+ {[%emt 0:00:03]} Qe7 {[%emt 0:00:
00]} 48. Rd7 {[%emt 0:00:02]} 1-0

[Event "European Rapid Championship 2021"]
[Site "Katowice"]
[Date "2021.12.19"]
[Round "10.15"]
[White "Janeczko, Jakub"]
[Black "Zylka, Stanislaw"]
[Result "1-0"]
[ECO "B01"]
[WhiteElo "1900"]
[BlackElo "2367"]
[Annotator "NA"]
[PlyCount "109"]
[EventDate "2021.12.18"]
[EventType "swiss"]
[EventCountry "POL"]
[SourceTitle "playchess.com"]
[Source "ChessBase"]
[SourceQuality "1"]
[TimeControl "900+10"]

1. e4 {[%emt 0:00:02]} d5 {[%emt 0:00:01]} 2. exd5 {[%emt 0:00:02]} Qxd5 {
[%emt 0:00:02]} 3. Nc3 {[%emt 0:00:01]} Qa5 {[%emt 0:00:01]} 4. d4 {[%emt 0:00:
12]} Nf6 {[%emt 0:00:02]} 5. Bd2 {[%emt 0:00:08]} Bg4 {[%emt 0:00:04]} 6. Be2 {
[%emt 0:00:04]} Bxe2 {[%emt 0:00:03]} 7. Qxe2 {[%emt 0:00:03]} Nc6 {[%emt 0:00:
29]} 8. Nf3 {[%emt 0:00:10]} O-O-O {[%emt 0:00:11]} 9. Nb5 {[%emt 0:00:17]} Qb6
{[%emt 0:00:37]} 10. Ng5 {[%emt 0:00:11]} Nxd4 {[%emt 0:11:14]} 11. Nxd4 {
[%emt 0:00:06]} Rxd4 {[%emt 0:00:02]} 12. Be3 {[%emt 0:01:45]} Qa5+ {[%emt 0:
00:01]} 13. c3 {[%emt 0:00:04]} Rg4 {[%emt 0:00:01]} 14. Nxf7 {[%emt 0:00:07]}
Rg8 {[%emt 0:00:19]} 15. O-O-O {[%emt 0:00:34]} b6 {[%emt 0:00:28]} 16. Qf3 {
[%emt 0:01:18]} Re4 {[%emt 0:00:03]} 17. Rd8+ {[%emt 0:00:12]} Kb7 {[%emt 0:00:
01]} 18. Ng5 {[%emt 0:00:03]} Qxa2 {[%emt 0:00:43]} 19. Nxe4 {[%emt 0:00:18]}
Qa1+ {[%emt 0:00:02]} 20. Kc2 {[%emt 0:00:01]} Qa4+ {[%emt 0:00:02]} 21. Kb1 {
[%emt 0:00:06]} Qxe4+ {[%emt 0:00:07]} 22. Qxe4+ {[%emt 0:00:02]} Nxe4 {
[%emt 0:00:01]} 23. Rhd1 {[%emt 0:00:48]} Nd6 {[%emt 0:00:01]} 24. Bf4 {
[%emt 0:00:22]} e5 {[%emt 0:00:36]} 25. Bxe5 {[%emt 0:00:48]} Nf7 {[%emt 0:00:
01]} 26. Re8 {[%emt 0:00:02]} Nxe5 {[%emt 0:00:01]} 27. Rxe5 {[%emt 0:00:01]}
Bd6 {[%emt 0:00:01]} 28. Re4 {[%emt 0:00:42]} Rf8 {[%emt 0:00:03]} 29. f3 {
[%emt 0:00:01]} a5 {[%emt 0:00:01]} 30. Rd5 {[%emt 0:00:06]} Kc6 {[%emt 0:00:
04]} 31. Rh5 {[%emt 0:00:03]} h6 {[%emt 0:00:01]} 32. Kc2 {[%emt 0:00:32]} Kd7
{[%emt 0:00:42]} 33. Kd3 {[%emt 0:00:33]} Kc6 {[%emt 0:00:01]} 34. Kc4 {
[%emt 0:02:39]} Rf7 {[%emt 0:00:01]} 35. b4 {[%emt 0:00:13]} axb4 {[%emt 0:00:
07]} 36. cxb4 {[%emt 0:00:02]} Rd7 {[%emt 0:01:27]} 37. b5+ {[%emt 0:00:26]}
Kb7 {[%emt 0:00:01]} 38. Re6 {[%emt 0:00:13]} Bc5 {[%emt 0:00:11]} 39. Rd5 {
[%emt 0:00:28]} Bd6 {[%emt 0:00:20]} 40. f4 {[%emt 0:00:25]} Rf7 {[%emt 0:00:
38]} 41. g3 {[%emt 0:00:01]} Kc8 {[%emt 0:00:05]} 42. f5 {[%emt 0:00:51]} Kd7 {
[%emt 0:00:05]} 43. g4 {[%emt 0:00:06]} Rf8 {[%emt 0:00:24]} 44. h4 {[%emt 0:
00:05]} Kc8 {[%emt 0:00:44]} 45. g5 {[%emt 0:00:36]} hxg5 {[%emt 0:00:02]} 46.
hxg5 {[%emt 0:00:02]} Rh8 {[%emt 0:00:12]} 47. Rg6 {[%emt 0:01:02]} Rh7 {
[%emt 0:00:25]} 48. Rdxd6 {[%emt 0:00:20]} cxd6 {[%emt 0:00:01]} 49. Kd5 {
[%emt 0:00:01]} Kc7 {[%emt 0:00:08]} 50. Ke6 {[%emt 0:00:21]} Kd8 {[%emt 0:00:
26]} 51. Kxd6 {[%emt 0:00:10]} Ke8 {[%emt 0:00:01]} 52. Re6+ {[%emt 0:01:26]}
Kf8 {[%emt 0:00:01]} 53. g6 {[%emt 0:01:00]} Rh1 {[%emt 0:00:02]} 54. Kc7 {
[%emt 0:00:41]} Rf1 {[%emt 0:00:02]} 55. Re5 {[%emt 0:00:01]} 1-0

[Event "European Rapid Championship 2021"]
[Site "Katowice"]
[Date "2021.12.19"]
[Round "10.16"]
[White "Ortega Ruiz, Jose Miguel"]
[Black "Kozlowski, Michal"]
[Result "1-0"]
[ECO "E18"]
[WhiteElo "2150"]
[BlackElo "2047"]
[Annotator "NA"]
[PlyCount "71"]
[EventDate "2021.12.18"]
[EventType "swiss"]
[EventCountry "POL"]
[SourceTitle "playchess.com"]
[Source "ChessBase"]
[SourceQuality "1"]
[TimeControl "900+10"]

1. d4 {[%emt 0:01:02]} Nf6 {[%emt 0:00:03]} 2. c4 {[%emt 0:00:01]} e6 {[%emt 0:
00:01]} 3. Nf3 {[%emt 0:00:01]} b6 {[%emt 0:00:01]} 4. g3 {[%emt 0:00:02]} Bb7
{[%emt 0:00:01]} 5. Bg2 {[%emt 0:00:01]} Be7 {[%emt 0:00:02]} 6. O-O {[%emt 0:
00:03]} O-O {[%emt 0:00:03]} 7. Nc3 {[%emt 0:00:02]} c5 {[%emt 0:00:35]} 8. d5
{[%emt 0:00:01]} d6 {[%emt 0:00:55]} 9. dxe6 {[%emt 0:00:37]} fxe6 {[%emt 0:00:
01]} 10. Bh3 {[%emt 0:00:03]} e5 {[%emt 0:03:25]} 11. Ng5 {[%emt 0:00:01]} Qe8
{[%emt 0:00:14]} 12. Nb5 {[%emt 0:01:56]} Nc6 {[%emt 0:04:20]} 13. Nc7 {
[%emt 0:02:14]} Qh5 {[%emt 0:00:02]} 14. Nxa8 {[%emt 0:00:16]} Nd4 {[%emt 0:00:
57]} 15. f3 {[%emt 0:02:24]} Bxa8 {[%emt 0:00:57]} 16. e3 {[%emt 0:00:44]}
Nxf3+ {[%emt 0:02:44]} 17. Rxf3 {[%emt 0:00:01]} Qxg5 {[%emt 0:00:05]} 18. Rf5
{[%emt 0:00:17]} Qg6 {[%emt 0:01:26]} 19. Qf1 {[%emt 0:00:02]} Be4 {[%emt 0:00:
10]} 20. Rf2 {[%emt 0:00:01]} Bd3 {[%emt 0:00:54]} 21. Be6+ {[%emt 0:00:01]}
Kh8 {[%emt 0:00:01]} 22. Qh3 {[%emt 0:00:01]} Ne4 {[%emt 0:01:21]} 23. Rxf8+ {
[%emt 0:00:02]} Bxf8 {[%emt 0:00:01]} 24. Qf5 {[%emt 0:00:01]} Be7 {[%emt 0:00:
35]} 25. Qxg6 {[%emt 0:00:27]} hxg6 {[%emt 0:00:01]} 26. b3 {[%emt 0:00:24]}
Bg5 {[%emt 0:00:12]} 27. h4 {[%emt 0:00:03]} Bf6 {[%emt 0:00:11]} 28. Kg2 {
[%emt 0:00:05]} g5 {[%emt 0:00:14]} 29. hxg5 {[%emt 0:00:28]} Bxg5 {[%emt 0:00:
11]} 30. Bb2 {[%emt 0:00:01]} g6 {[%emt 0:00:10]} 31. Bd5 {[%emt 0:00:30]} Nf6
{[%emt 0:00:07]} 32. Bf3 {[%emt 0:00:50]} Bxe3 {[%emt 0:00:14]} 33. Rd1 {
[%emt 0:00:01]} e4 {[%emt 0:00:00]} 34. Bxf6+ {[%emt 0:00:02]} Kg8 {[%emt 0:00:
02]} 35. Bg4 {[%emt 0:00:04]} Kf7 {[%emt 0:00:02]} 36. Bc3 {[%emt 0:00:06]} 1-0

[Event "European Rapid Championship 2021"]
[Site "Katowice"]
[Date "2021.12.19"]
[Round "10.17"]
[White "Schneider, Ilja"]
[Black "Kos, Pawel"]
[Result "1-0"]
[ECO "C60"]
[WhiteElo "2490"]
[BlackElo "2199"]
[Annotator "ChessBase"]
[PlyCount "97"]
[EventDate "2021.12.18"]
[EventType "swiss"]
[EventCountry "POL"]
[SourceTitle "playchess.com"]
[Source "ChessBase"]
[SourceQuality "1"]
[TimeControl "900+10"]

1. e4 {[%emt 0:00:02]} e5 {[%emt 0:00:02]} 2. Nf3 {[%emt 0:00:01]} Nc6 {
[%emt 0:00:01]} 3. Bb5 {[%emt 0:00:01]} g6 {[%emt 0:00:02]} 4. c3 {[%emt 0:00:
19]} a6 {[%emt 0:00:02]} 5. Ba4 {[%emt 0:00:04]} d6 {[%emt 0:00:36]} 6. d4 {
[%emt 0:00:14]} b5 {[%emt 0:00:01]} 7. Bb3 {[%emt 0:00:09]} Bg7 {[%emt 0:00:03]
} 8. dxe5 {[%emt 0:00:19]} dxe5 {[%emt 0:00:09]} 9. Nbd2 {[%emt 0:01:20]} Nf6 {
[%emt 0:00:56]} 10. a4 {[%emt 0:00:08]} Bb7 {[%emt 0:00:17]} 11. Qe2 {[%emt 0:
00:11]} O-O {[%emt 0:00:49]} 12. O-O {[%emt 0:00:56]} Na5 {[%emt 0:01:34]} 13.
Bc2 {[%emt 0:00:12]} b4 {[%emt 0:05:09]} 14. Nxe5 {[%emt 0:01:28]} Qe7 {
[%emt 0:02:34]} 15. Ndf3 {[%emt 0:00:39]} Rfe8 {[%emt 0:00:40]} 16. cxb4 {
[%emt 0:01:02]} Qxb4 {[%emt 0:00:11]} 17. Bd2 {[%emt 0:00:13]} Qb6 {[%emt 0:01:
00]} 18. b4 {[%emt 0:01:09]} Nc6 {[%emt 0:00:36]} 19. Be3 {[%emt 0:00:23]} Qxb4
{[%emt 0:00:18]} 20. Rab1 {[%emt 0:00:02]} Qe7 {[%emt 0:00:29]} 21. Nxf7 {
[%emt 0:00:18]} Na5 {[%emt 0:00:16]} 22. N7e5 {[%emt 0:01:21]} Bxe4 {[%emt 0:
00:20]} 23. Rfc1 {[%emt 0:01:39]} Bxc2 {[%emt 0:00:23]} 24. Qxc2 {[%emt 0:00:
01]} Nd5 {[%emt 0:00:18]} 25. Qa2 {[%emt 0:00:27]} Qe6 {[%emt 0:00:11]} 26. Bd2
{[%emt 0:00:58]} Bxe5 {[%emt 0:00:29]} 27. Bxa5 {[%emt 0:00:01]} Bd6 {[%emt 0:
00:46]} 28. Re1 {[%emt 0:01:13]} Qf7 {[%emt 0:00:32]} 29. Qc4 {[%emt 0:00:38]}
Nf4 {[%emt 0:00:26]} 30. Qc6 {[%emt 0:00:23]} h6 {[%emt 0:00:28]} 31. Bd2 {
[%emt 0:00:21]} Rf8 {[%emt 0:00:27]} 32. Bxf4 {[%emt 0:00:21]} Qxf4 {[%emt 0:
00:01]} 33. Re4 {[%emt 0:00:50]} Qf7 {[%emt 0:00:05]} 34. Rbe1 {[%emt 0:00:13]}
a5 {[%emt 0:00:07]} 35. h4 {[%emt 0:00:13]} Rab8 {[%emt 0:00:13]} 36. Qa6 {
[%emt 0:00:28]} Ra8 {[%emt 0:00:02]} 37. Qd3 {[%emt 0:00:12]} Qf5 {[%emt 0:00:
06]} 38. Qe3 {[%emt 0:00:17]} Kg7 {[%emt 0:00:06]} 39. Nd4 {[%emt 0:00:03]} Qd5
{[%emt 0:00:23]} 40. Ne6+ {[%emt 0:00:01]} Kh7 {[%emt 0:00:02]} 41. Nxf8+ {
[%emt 0:01:05]} Rxf8 {[%emt 0:00:01]} 42. Qd4 {[%emt 0:00:31]} Qf5 {[%emt 0:00:
17]} 43. R1e2 {[%emt 0:01:04]} Bc5 {[%emt 0:00:17]} 44. Qd2 {[%emt 0:00:01]}
Bd6 {[%emt 0:00:04]} 45. R4e3 {[%emt 0:00:08]} Qg4 {[%emt 0:00:06]} 46. Re7+ {
[%emt 0:00:06]} Bxe7 {[%emt 0:00:44]} 47. Rxe7+ {[%emt 0:00:01]} Kg8 {[%emt 0:
00:01]} 48. Qa2+ {[%emt 0:00:00]} Kh8 {[%emt 0:00:10]} 49. Qa1+ {[%emt 0:00:01]
} 1-0

[Event "European Rapid Championship 2021"]
[Site "Katowice"]
[Date "2021.12.19"]
[Round "10.17"]
[White "Galuszka, Tomasz"]
[Black "Bogdanov, Ignat"]
[Result "1/2-1/2"]
[ECO "C03"]
[WhiteElo "1886"]
[BlackElo "2058"]
[Annotator "NA"]
[PlyCount "48"]
[EventDate "2021.12.18"]
[EventType "swiss"]
[EventCountry "POL"]
[SourceTitle "playchess.com"]
[Source "ChessBase"]
[SourceQuality "1"]
[TimeControl "900+10"]

1. e4 {[%emt 0:00:03]} e6 {[%emt 0:00:01]} 2. d4 {[%emt 0:00:03]} d5 {[%emt 0:
00:02]} 3. Nd2 {[%emt 0:00:02]} dxe4 {[%emt 0:00:18]} 4. Nxe4 {[%emt 0:00:03]}
Nf6 {[%emt 0:00:02]} 5. Bd3 {[%emt 0:00:15]} Nxe4 {[%emt 0:00:23]} 6. Bxe4 {
[%emt 0:00:03]} c5 {[%emt 0:00:02]} 7. Nf3 {[%emt 0:02:11]} Nc6 {[%emt 0:00:07]
} 8. dxc5 {[%emt 0:01:02]} Qxd1+ {[%emt 0:00:16]} 9. Kxd1 {[%emt 0:00:02]} Bxc5
{[%emt 0:00:02]} 10. Be3 {[%emt 0:00:32]} Bxe3 {[%emt 0:00:32]} 11. Bxc6+ {
[%emt 0:00:13]} bxc6 {[%emt 0:00:03]} 12. fxe3 {[%emt 0:00:01]} f6 {[%emt 0:00:
58]} 13. Kd2 {[%emt 0:00:19]} e5 {[%emt 0:00:10]} 14. Kc3 {[%emt 0:00:02]} Be6
{[%emt 0:00:20]} 15. Nd2 {[%emt 0:00:17]} O-O-O {[%emt 0:00:44]} 16. Nb3 {
[%emt 0:00:54]} Rd6 {[%emt 0:01:33]} 17. Rhd1 {[%emt 0:00:57]} Rhd8 {[%emt 0:
00:06]} 18. Rxd6 {[%emt 0:00:05]} Rxd6 {[%emt 0:00:02]} 19. Nc5 {[%emt 0:00:04]
} Kc7 {[%emt 0:00:39]} 20. b4 {[%emt 0:00:53]} f5 {[%emt 0:00:43]} 21. a4 {
[%emt 0:00:35]} Bd5 {[%emt 0:02:31]} 22. Rf1 {[%emt 0:01:12]} Rf6 {[%emt 0:01:
38]} 23. g3 {[%emt 0:00:28]} Kd6 {[%emt 0:01:04]} 24. Kd3 {[%emt 0:01:57]} Be4+
{[%emt 0:03:57]} 1/2-1/2